bitfinex-derivatives/quotes_ETHF0:USTF0_20250709
["timestamp","ask_amount","ask_price","bid_price","bid_amount"]
[1752029092266,0.76653,2608.5,2608.4,7.86470846]
[1752029092469,0.76653,2608.5,2608.4,7.09814846]
[1752029094060,0.76653,2608.5,2608.4,7.86470846]
[1752029094269,0.76653,2608.5,2608.4,7.09814846]
[1752029095571,0.76653,2608.5,2608.4,7.86470846]
[1752029096070,2.0647104,2608.6,2608.4,7.86470846]
[1752029096266,1.2981904,2608.6,2608.5,0.9398]
[1752029096470,0.7665,2608.6,2608.5,3.89034846]
[1752029096670,0.7665,2608.6,2608.5,5.16234846]
[1752029096971,0.76649,2608.7,2608.5,5.92887846]
[1752029097165,0.76649,2608.7,2608.6,2.2118]
[1752029097469,0.76649,2608.7,2608.6,3.5083]
[1752029098765,0.76649,2608.7,2608.6,1.2965]
[1752029099069,0.76649,2608.7,2608.6,2.2363]
[1752029103674,0.76649,2608.7,2608.6,4.52604846]
[1752029105672,0.76649,2608.7,2608.6,5.79974846]
[1752029105874,0.76647,2608.7,2608.6,5.79974846]
[1752029109080,4.5059904,2609.0,2608.6,5.79974846]
[1752029109276,0.76647,2608.7,2608.6,3.58624846]
[1752029109876,0.76647,2608.7,2608.6,4.52604846]
[1752029110378,0.76647,2608.7,2608.6,5.29254846]
[1752029110781,0.76647,2608.7,2608.6,4.52604846]
[1752029114281,0.76647,2608.7,2608.6,3.58624846]
[1752029115682,0.76647,2608.7,2608.6,4.52604846]
[1752029116186,0.76647,2608.7,2608.6,3.58624846]
[1752029117287,0.76647,2608.7,2608.6,4.61784846]
[1752029118887,0.76647,2608.7,2608.6,3.58624846]
[1752029120988,0.76647,2608.7,2608.6,4.61784846]
[1752029124493,0.76647,2608.7,2608.6,5.89444846]
[1752029127600,0.76647,2608.7,2608.6,6.66094846]
[1752029127797,0.76647,2608.7,2608.6,5.89444846]
[1752029130996,0.76647,2608.7,2608.6,4.61784846]
[1752029130997,2.0646604,2608.7,2608.6,4.61784846]
[1752029131802,2.0646604,2608.7,2608.6,3.58624846]
[1752029132806,2.0646604,2608.7,2608.6,1.2965]
[1752029133203,2.0646604,2608.7,2608.6,3.58624846]
[1752029133904,2.0646604,2608.7,2608.6,0.6357]
[1752029134201,0.7665,2608.6,2608.5,2.28974846]
[1752029134402,0.7665,2608.6,2608.5,2.91764846]
[1752029134903,0.7665,2608.6,2608.5,1.6595]
[1752029136699,0.7665,2608.6,2608.5,0.6279]
[1752029137805,0.76659,2608.3,2608.2,2.28974846]
[1752029138004,0.76662,2608.2,2608.1,4.0078]
[1752029138302,0.76662,2608.2,2608.1,4.63573188]
[1752029138903,0.76662,2608.2,2608.1,2.29313188]
[1752029139102,0.76662,2608.2,2608.1,0.6279]
[1752029139304,0.76662,2608.2,2608.1,1.6595]
[1752029145001,0.76662,2608.2,2608.1,0.6279]
[1752029145200,0.76662,2608.2,2607.9,2.0555]
[1752029145201,0.76668,2608.0,2607.9,0.6831]
[1752029145408,0.76674,2607.8,2607.7,1.0316]
[1752029145907,2.0649304,2607.8,2607.7,1.0316]
[1752029148103,0.76674,2607.8,2607.7,1.0316]
[1752029148302,0.76674,2607.8,2607.7,2.3297904]
[1752029148503,0.76672,2607.9,2607.7,6.9140904]
[1752029148703,3.2078,2608.3,2607.7,6.9140904]
[1752029148704,0.76669,2608.0,2607.8,2.14322]
[1752029148904,41.56669,2608.0,2607.9,1.3765]
[1752029149103,41.56669,2608.0,2607.9,2.0428]
[1752029149308,0.76669,2608.0,2607.9,2.0428]
[1752029149808,0.76669,2608.0,2607.9,3.7346]
[1752029150512,0.76667,2608.1,2608.0,0.76667]
[1752029150807,0.76667,2608.1,2608.0,3.83008]
[1752029151211,0.76665,2608.1,2608.0,3.83006]
[1752029151512,3.2078,2608.3,2608.0,8.83006]
[1752029151702,0.76662,2608.2,2608.1,2.2993904]
[1752029152208,0.76662,2608.2,2608.1,1.6918]
[1752029154311,0.76662,2608.2,2608.1,2.9899904]
[1752029155114,0.76662,2608.2,2608.1,1.6918]
[1752029157015,0.76662,2608.2,2608.1,3.7566404]
[1752029157210,2.0648104,2608.2,2607.9,2.95943188]
[1752029157418,2.0648704,2608.0,2607.9,3.65003188]
[1752029157816,46.0726704,2608.0,2607.9,2.29313188]
[1752029158114,0.76677,2607.7,2607.6,2.29313188]
[1752029158318,0.76677,2607.7,2607.6,2.98373188]
[1752029158515,0.76677,2607.7,2607.6,0.6906]
[1752029160617,0.76677,2607.7,2607.6,1.6918]
[1752029164323,0.76677,2607.7,2607.6,3.0106]
[1752029168724,0.76677,2607.7,2607.6,1.6918]
[1752029171425,0.76677,2607.7,2607.6,0.6906]
[1752029172932,3.2078,2607.7,2607.3,4.44532552]
[1752029173231,0.76689,2607.3,2607.2,3.44412552]
[1752029173433,0.76689,2607.3,2607.2,0.6906]
[1752029173633,0.76689,2607.3,2607.2,1.6918]
[1752029175632,1.23729,2607.3,2607.2,1.6918]
[1752029175832,0.76689,2607.3,2607.2,1.6918]
[1752029176339,0.76689,2607.3,2607.2,2.3556]
[1752029176732,1.24119,2607.3,2607.2,2.3556]
[1752029176935,0.76689,2607.3,2607.2,2.3556]
[1752029177136,1.24119,2607.3,2607.2,2.3556]
[1752029179342,0.76689,2607.3,2607.2,2.3556]
[1752029188538,1.24119,2607.3,2607.2,2.3556]
[1752029188743,0.76689,2607.3,2607.2,2.3556]
[1752029189347,1.24119,2607.3,2607.2,2.3556]
[1752029189543,2.63921741,2607.3,2607.2,2.3556]
[1752029192441,2.63921741,2607.3,2607.2,0.6906]
[1752029192644,0.767,2606.9,2606.8,0.9611]
[1752029192846,0.767,2606.9,2606.8,2.2736]
[1752029196145,1.4524,2606.9,2606.8,2.2736]
[1752029196351,0.767,2606.9,2606.8,2.2736]
[1752029196549,1.4524,2606.9,2606.8,0.6489]
[1752029196840,0.76706,2606.7,2606.6,4.8141]
[1752029197039,0.76706,2606.7,2606.6,5.4777]
[1752029197647,1.45246,2606.7,2606.6,2.2699]
[1752029197848,0.76715,2606.4,2606.3,5.68512552]
[1752029198047,1.45255,2606.4,2606.3,2.5887]
[1752029198246,1.45255,2606.4,2606.3,3.5498]
[1752029198451,0.76715,2606.4,2606.3,3.5498]
[1752029198646,1.45255,2606.4,2606.3,3.5498]
[1752029200344,44.6355,2606.8,2606.3,3.5498]
[1752029200550,1.39850298,2606.7,2606.4,2.2118]
[1752029200855,0.76709,2606.6,2606.5,2.341]
[1752029201056,0.76709,2606.6,2606.5,3.0046]
[1752029201253,1.45249,2606.6,2606.5,3.0046]
[1752029201958,1.45249,2606.6,2606.5,2.0435]
[1752029202156,1.45249,2606.6,2606.5,0.6636]
[1752029204259,0.76715,2606.4,2606.3,1.6063]
[1752029204458,0.76715,2606.4,2606.3,0.6452]
[1752029204659,1.45255,2606.4,2606.3,0.6636]
[1752029204957,2.11325,2606.4,2606.3,0.6636]
[1752029207561,1.42785,2606.4,2606.3,0.6636]
[1752029207854,2.11555,2606.4,2606.3,0.6636]
[1752029210162,2.11555,2606.4,2606.3,1.2905]
[1752029211063,1.45485,2606.4,2606.3,2.3252]
[1752029211264,1.45485,2606.4,2606.3,3.5879]
[1752029211963,0.76715,2606.4,2606.3,3.5879]
[1752029213559,0.76713,2606.5,2606.3,4.8860904]
[1752029213764,0.76713,2606.5,2606.4,1.3844]
[1752029214062,0.76713,2606.5,2606.4,3.0922]
[1752029214364,0.76713,2606.5,2606.4,3.85934]
[1752029215165,44.0078,2606.8,2606.5,0.76711]
[1752029215362,2.16589406,2606.7,2606.6,1.0347]
[1752029215663,2.16589406,2606.7,2606.6,2.82609]
[1752029215963,2.16589406,2606.7,2606.6,3.49919]
[1752029216361,0.76706,2606.7,2606.6,3.7668]
[1752029216561,1.45476,2606.7,2606.6,3.7668]
[1752029217165,0.76706,2606.7,2606.6,4.53389]
[1752029217365,0.76706,2606.7,2606.6,3.7668]
[1752029219166,2.16697184,2606.7,2606.6,3.7668]
[1752029219566,2.16697184,2606.7,2606.6,4.53389]
[1752029219865,2.16697184,2606.7,2606.6,3.7668]
[1752029220662,2.85467184,2606.7,2606.6,2.7321]
[1752029220861,5.30347224,2606.7,2606.2,5.00969]
[1752029221166,0.76717,2606.4,2606.3,1.80186]
[1752029221468,1.45487,2606.4,2606.3,1.9548]
[1752029221667,0.76717,2606.4,2606.3,1.9548]
[1752029222069,0.76717,2606.4,2606.3,2.5934]
[1752029222267,1.45487,2606.4,2606.3,2.5934]
[1752029222562,0.76717,2606.4,2606.3,2.5934]
[1752029223168,0.76717,2606.4,2606.3,3.36058]
[1752029223371,29.2598,2606.8,2606.3,3.6281]
[1752029223571,0.76712,2606.5,2606.4,2.4165]
[1752029223766,0.76712,2606.5,2606.4,3.0896]
[1752029224168,1.45482,2606.5,2606.4,3.0896]
[1752029224571,0.76712,2606.5,2606.4,3.0896]
[1752029225171,1.45482,2606.5,2606.4,3.0896]
[1752029225372,2.85663337,2606.5,2606.4,3.0896]
[1752029227277,2.85663337,2606.5,2606.4,3.85675]
[1752029230674,2.85663337,2606.5,2606.4,3.0896]
[1752029230876,2.85663337,2606.5,2606.4,3.85675]
[1752029231077,2.85663337,2606.5,2606.4,3.0896]
[1752029231882,2.85663337,2606.5,2606.4,3.85675]
[1752029234481,2.85663337,2606.5,2606.4,3.0896]
[1752029235480,2.85663337,2606.5,2606.4,2.0549]
[1752029235675,2.85663337,2606.5,2606.4,0.6731]
[1752029235980,2.85663337,2606.5,2606.3,0.6386]
[1752029235981,0.76715,2606.4,2606.3,0.6386]
[1752029236183,1.42555,2606.4,2606.3,1.3335]
[1752029238183,1.42555,2606.4,2606.3,2.319]
[1752029240587,1.42555,2606.4,2606.3,3.08618]
[1752029241086,1.42555,2606.4,2606.3,6.53030552]
[1752029241990,0.76713,2606.5,2606.4,0.76715]
[1752029242286,2.1695781,2606.5,2606.4,2.44755]
[1752029242584,2.1695781,2606.5,2606.4,3.81015]
[1752029243484,2.8279781,2606.5,2606.4,3.81015]
[1752029243782,2.0608481,2606.5,2606.4,3.81015]
[1752029243982,1.4024481,2606.5,2606.4,3.81015]
[1752029244182,1.4024481,2606.5,2606.4,5.1083404]
[1752029244386,2.16991371,2606.7,2606.6,0.76709]
[1752029244684,2.16991371,2606.7,2606.6,2.44749]
[1752029244885,2.16991371,2606.7,2606.6,0.6949]
[1752029245086,2.82831371,2606.7,2606.6,3.11149]
[1752029245587,2.16991371,2606.7,2606.6,2.3444]
[1752029245787,2.82831371,2606.7,2606.6,2.3444]
[1752029246286,2.82831371,2606.7,2606.6,1.3589]
[1752029246890,0.76709,2606.6,2606.5,0.9855]
[1752029247191,0.76712,2606.5,2606.4,0.76713]
[1752029247488,2.82835371,2606.5,2606.4,2.44753]
[1752029247683,2.16995371,2606.5,2606.4,2.44753]
[1752029248084,2.82835371,2606.5,2606.4,5.89165552]
[1752029248285,2.16995371,2606.5,2606.4,5.89165552]
[1752029248482,1.40283371,2606.5,2606.4,5.89165552]
[1752029249597,0.76699,2607.0,2606.9,0.767]
[1752029249788,2.81632481,2607.0,2606.9,3.7455904]
[1752029249988,2.15792481,2607.0,2606.9,3.7455904]
[1752029250188,2.81632481,2607.0,2606.9,3.7455904]
[1752029250691,2.81632481,2607.0,2606.9,2.4474]
[1752029250892,2.81632481,2607.0,2606.9,1.6804]
[1752029251690,0.767,2606.9,2606.8,0.6665]
[1752029251894,0.767,2606.9,2606.5,3.44412552]
[1752029251895,0.76709,2606.7,2606.5,5.19672552]
[1752029252089,1.42549,2606.7,2606.6,1.46199]
[1752029252591,0.76709,2606.7,2606.6,1.46199]
[1752029252791,1.42549,2606.7,2606.6,0.6949]
[1752029253192,1.42549,2606.7,2606.6,1.46199]
[1752029253494,1.42549,2606.7,2606.6,2.44749]
[1752029253988,1.42549,2606.7,2606.6,0.6949]
[1752029254796,0.76709,2606.6,2606.5,0.6665]
[1752029255094,1.42549,2606.6,2606.5,1.3614]
[1752029255392,1.42549,2606.6,2606.5,2.12852]
[1752029255589,1.42549,2606.6,2606.5,3.11402]
[1752029255992,0.76709,2606.6,2606.5,3.11402]
[1752029256397,1.42549,2606.6,2606.5,3.11402]
[1752029256591,0.76709,2606.6,2606.5,3.11402]
[1752029256997,1.42549,2606.6,2606.5,2.3469]
[1752029257297,1.42549,2606.6,2606.5,3.11402]
[1752029257897,1.42549,2606.6,2606.5,2.3469]
[1752029258397,1.42549,2606.6,2606.5,3.11402]
[1752029258598,1.42549,2606.6,2606.5,1.3614]
[1752029259694,1.42549,2606.6,2606.5,2.12852]
[1752029259901,1.42549,2606.6,2606.5,3.11402]
[1752029262802,0.6584,2606.6,2606.5,3.11402]
[1752029263303,0.6584,2606.6,2606.5,4.45932]
[1752029264603,0.6584,2606.6,2606.5,7.90423111]
[1752029264904,0.76703,2606.9,2606.8,0.76702]
[1752029265105,2.15603432,2606.9,2606.8,1.46192]
[1752029265603,2.15603432,2606.9,2606.8,3.13522]
[1752029265802,2.81103432,2606.9,2606.8,3.13522]
[1752029266003,2.15603432,2606.9,2606.8,3.13522]
[1752029266204,2.81103432,2606.9,2606.8,3.13522]
[1752029267807,2.81103432,2606.9,2606.8,2.14972]
[1752029268104,2.04400432,2606.9,2606.6,1.2631]
[1752029268409,0.76706,2606.7,2606.6,1.45488]
[1752029268614,1.44875,2606.8,2606.7,0.76706]
[1752029268804,3.49282915,2606.8,2606.7,1.41236]
[1752029269209,3.49282915,2606.8,2606.7,2.41256]
[1752029272318,2.81112915,2606.8,2606.7,2.41256]
[1752029272920,2.04407915,2606.8,2606.7,2.41256]
[1752029273218,2.81110915,2606.8,2606.7,2.41256]
[1752029274722,2.04407915,2606.8,2606.7,2.41256]
[1752029277421,2.81110915,2606.8,2606.7,2.41256]
[1752029278923,2.81110915,2606.8,2606.7,0.6453]
[1752029279117,0.76706,2606.7,2606.6,3.44469589]
[1752029279322,4.3707504,2606.7,2606.6,3.44469589]
[1752029279522,0.76709,2606.6,2606.5,3.44469589]
[1752029279722,1.42209,2606.6,2606.5,3.44469589]
[1752029280426,0.76715,2606.4,2606.3,4.21187589]
[1752029280624,0.76715,2606.4,2606.3,4.08999589]
[1752029280923,0.76715,2606.5,2606.3,4.85717589]
[1752029281124,0.76715,2606.4,2606.3,4.85717589]
[1752029281325,1.42215,2606.4,2606.3,4.85717589]
[1752029281525,1.42215,2606.4,2606.3,3.44469589]
[1752029282120,2.69960414,2606.4,2606.2,3.2078]
[1752029282324,2.15231105,2606.3,2606.2,3.2078]
[1752029282725,2.15231105,2606.3,2606.2,3.8531]
[1752029282930,2.80731105,2606.3,2606.2,6.25021]
[1752029283424,1.42218,2606.3,2606.2,7.59441]
[1752029283625,2.80637506,2606.3,2606.2,4.4828]
[1752029284327,1.42218,2606.3,2606.2,4.4828]
[1752029285721,2.7203704,2606.3,2606.2,3.2078]
[1752029286026,4.10596424,2606.3,2606.2,3.8531]
[1752029286426,2.80777384,2606.3,2606.2,3.8531]
[1752029286626,2.80777384,2606.3,2606.2,3.2078]
[1752029287021,2.80777384,2606.3,2606.2,3.8531]
[1752029287219,1.42218,2606.3,2606.2,3.8531]
[1752029287430,2.8070163,2606.3,2606.2,3.8531]
[1752029290226,2.8070163,2606.3,2606.2,0.6453]
[1752029290427,0.76724,2606.1,2606.0,5.62985]
[1752029290730,1.42224,2606.1,2606.0,5.8475]
[1752029290931,0.76724,2606.1,2606.0,5.8475]
[1752029291127,0.76724,2606.1,2606.0,6.61477]
[1752029291329,1.42224,2606.1,2606.0,7.61497]
[1752029291529,0.76724,2606.1,2606.0,7.61497]
[1752029291724,0.76724,2606.1,2606.0,6.8477]
[1752029292630,1.42224,2606.1,2606.0,6.8477]
[1752029293430,0.76733,2605.8,2605.7,27.0492]
[1752029293734,1.42233,2605.8,2605.7,28.3223]
[1752029293933,1.42233,2605.8,2605.7,2.2733]
[1752029294932,1.42233,2605.8,2605.7,3.04066]
[1752029295438,0.76732,2605.9,2605.8,0.76733]
[1752029295632,0.76732,2605.9,2605.8,3.73433]
[1752029296737,0.76732,2605.9,2605.8,2.967]
[1752029297238,0.76745,2605.4,2605.3,3.44469589]
[1752029297435,0.76748,2605.3,2605.2,4.12949589]
[1752029297636,0.76754,2605.1,2605.0,4.46179589]
[1752029297830,1.41594,2605.1,2605.0,5.15579589]
[1752029298029,0.76754,2605.1,2605.0,5.15579589]
[1752029298240,1.41594,2605.1,2605.0,5.15579589]
[1752029298435,0.76757,2605.0,2604.9,3.44469589]
[1752029298631,0.76757,2605.0,2604.9,4.13869589]
[1752029299042,1.41597,2605.0,2604.9,4.13869589]
[1752029299340,1.41597,2605.0,2604.9,0.694]
[1752029299734,40.8,2605.3,2604.9,6.45398629]
[1752029299939,0.76755,2605.1,2605.0,0.658]
[1752029300138,0.76755,2605.1,2605.0,2.6539]
[1752029300340,0.76755,2605.1,2605.0,3.671]
[1752029300743,1.41594,2605.1,2605.0,1.352]
[1752029301433,1.41594,2605.1,2604.8,7.66959589]
[1752029301434,1.9465904,2605.1,2604.8,7.66959589]
[1752029301637,0.76759,2604.9,2604.8,8.32759589]
[1752029301835,1.41599,2604.9,2604.8,9.02159589]
[1752029302440,0.6484,2604.9,2604.8,35.09059589]
[1752029302646,0.6484,2604.9,2604.8,36.44009589]
[1752029303242,0.6484,2604.9,2604.8,37.20771589]
[1752029303436,0.6484,2604.9,2604.8,37.20871589]
[1752029303939,0.6484,2604.9,2604.8,34.00091589]
[1752029304244,40.8,2605.3,2605.2,0.76751]
[1752029304442,3.2078,2605.8,2605.3,0.76748]
[1752029304645,0.76742,2605.5,2605.4,2.9921]
[1752029304943,42.21582,2605.5,2605.4,3.6861]
[1752029305143,42.21582,2605.5,2605.4,4.45355]
[1752029305345,1.41582,2605.5,2605.4,4.45355]
[1752029305941,0.7674,2605.6,2605.5,0.76742]
[1752029306148,1.4158,2605.6,2605.5,3.006]
[1752029306445,0.7674,2605.6,2605.5,3.006]
[1752029306747,1.4158,2605.6,2605.5,3.006]
[1752029307446,1.4158,2605.6,2605.5,1.9889]
[1752029308740,1.4158,2605.6,2605.5,3.006]
[1752029310052,1.4158,2605.6,2605.5,3.77342]
[1752029310456,40.8,2605.7,2605.6,0.76739]
[1752029310648,40.8,2605.7,2605.6,3.83469]
[1752029310854,3.2078,2605.9,2605.8,0.76733]
[1752029311047,5.37230362,2605.9,2605.8,0.694]
[1752029311256,44.7751,2605.9,2605.8,1.7111]
[1752029311457,45.4235,2605.9,2605.8,1.3703]
[1752029312060,45.4235,2605.9,2605.8,2.13763]
[1752029312549,45.4235,2605.9,2605.8,1.3703]
[1752029316358,46.82110566,2605.9,2605.8,1.3703]
[1752029317563,0.76733,2605.8,2605.7,0.76735]
[1752029317762,2.7139204,2605.8,2605.7,0.694]
[1752029318062,2.0655204,2605.8,2605.7,0.694]
[1752029318262,2.7139204,2605.8,2605.7,0.694]
[1752029318470,1.9465904,2605.8,2605.3,4.45408625]
[1752029318663,1.2981904,2605.4,2605.3,31.21188625]
[1752029318862,1.9465904,2605.4,2605.3,34.04486625]
[1752029319063,1.9465904,2605.4,2605.3,30.60788]
[1752029319357,0.76748,2605.3,2605.2,3.43698625]
[1752029319564,0.76751,2605.2,2605.1,3.43698625]
[1752029319763,0.76754,2605.1,2605.0,0.6718]
[1752029319964,0.76754,2605.1,2605.0,1.3658]
[1752029320366,0.76757,2605.0,2604.9,3.43698625]
[1752029320562,0.76759,2604.9,2604.8,3.43698625]
[1752029320765,0.76762,2604.8,2604.7,26.1]
[1752029320962,0.76762,2604.8,2604.7,29.1804]
[1752029321163,1.41602,2604.8,2604.7,29.1804]
[1752029321567,1.41602,2604.8,2604.7,29.94805]
[1752029321770,1.41602,2604.8,2604.7,3.0804]
[1752029323265,0.6484,2604.8,2604.7,3.84805]
[1752029323463,0.76747,2605.4,2605.2,0.76751]
[1752029323662,5.2733904,2605.6,2605.4,0.76744]
[1752029323974,5.9217804,2605.6,2605.5,0.694]
[1752029324268,7.32000215,2605.6,2605.5,0.694]
[1752029324769,7.32000215,2605.6,2605.3,1.0171]
[1752029324770,0.76745,2605.4,2605.3,1.0171]
[1752029324968,0.76745,2605.4,2605.3,2.2754]
[1752029325168,0.76745,2605.4,2605.3,2.9694]
[1752029325867,2.0656404,2605.4,2605.3,2.9694]
[1752029326066,2.7383404,2605.4,2605.3,1.9523]
[1752029326267,0.76751,2605.2,2605.1,2.43102]
[1752029326469,0.76748,2605.3,2605.2,0.76751]
[1752029326871,0.6727,2605.3,2605.2,1.44361]
[1752029327371,0.6727,2605.3,2605.2,2.78751]
[1752029329174,1.44018,2605.3,2605.2,2.78751]
[1752029329673,0.6727,2605.3,2605.2,2.78751]
[1752029329875,0.6727,2605.3,2605.2,5.99531]
[1752029330278,2.0656504,2605.4,2605.3,0.76748]
[1752029330576,2.0656504,2605.4,2605.3,1.73288]
[1752029330775,2.7383504,2605.4,2605.3,1.73288]
[1752029331073,2.0656504,2605.4,2605.3,1.73288]
[1752029331676,2.7383504,2605.4,2605.3,1.73288]
[1752029331870,2.7383504,2605.4,2605.3,2.40898]
[1752029332371,1.9708904,2605.4,2605.3,2.40898]
[1752029332568,0.76741,2605.6,2605.3,2.8933]
[1752029332773,45.9970904,2605.8,2605.4,0.9654]
[1752029332967,0.76739,2605.6,2605.5,2.8877]
[1752029333278,4.13754217,2605.6,2605.5,2.5984]
[1752029333485,4.13754217,2605.6,2605.5,1.3466]
[1752029333776,4.13754217,2605.6,2605.5,0.6705]
[1752029333980,0.76745,2605.4,2605.3,1.73285]
[1752029334178,0.76745,2605.4,2605.3,2.40335]
[1752029334376,0.76745,2605.4,2605.3,4.33125]
[1752029334981,0.76744,2605.5,2605.4,0.76744]
[1752029335182,0.76744,2605.5,2605.4,2.40894]
[1752029335681,1.44014,2605.5,2605.4,2.40894]
[1752029336175,0.76744,2605.5,2605.4,2.40894]
[1752029336384,1.44012,2605.5,2605.4,2.40894]
[1752029336681,0.6727,2605.5,2605.4,2.40894]
[1752029337382,1.44012,2605.5,2605.4,2.40894]
[1752029338182,1.44012,2605.5,2605.4,2.9587]
[1752029340678,1.44012,2605.5,2605.4,0.6761]
[1752029340882,1.44012,2605.5,2605.2,3.2078]
[1752029340883,0.76748,2605.3,2605.2,3.2078]
[1752029341079,0.76748,2605.3,2605.2,3.8839]
[1752029341384,1.44018,2605.3,2605.2,3.8839]
[1752029341981,0.76748,2605.3,2605.2,3.8839]
[1752029342284,1.44018,2605.3,2605.2,3.2078]
[1752029342679,1.44018,2605.3,2605.2,3.8839]
[1752029342983,0.76748,2605.3,2605.2,3.8839]
[1752029343187,1.44018,2605.3,2605.2,3.8839]
[1752029343380,1.44018,2605.3,2605.2,3.2078]
[1752029344284,0.76759,2604.9,2604.8,4.09788625]
[1752029344482,2.0657804,2604.9,2604.8,4.77398625]
[1752029344984,2.7384804,2604.9,2604.8,5.73938625]
[1752029345385,2.7384804,2604.9,2604.8,2.3024]
[1752029347582,0.76762,2604.8,2604.7,6.64478625]
[1752029347787,1.44032,2604.8,2604.7,8.28628625]
[1752029347989,0.76762,2604.8,2604.7,8.28628625]
[1752029348490,0.76762,2604.8,2604.7,6.64478625]
[1752029348491,1.44032,2604.8,2604.7,6.64478625]
[1752029348688,2.7385104,2604.8,2604.7,7.32088625]
[1752029349184,2.7385104,2604.8,2604.7,8.28628625]
[1752029349488,1.44032,2604.8,2604.7,8.28628625]
[1752029349686,1.44032,2604.8,2604.7,4.8493]
[1752029349687,2.83933343,2604.8,2604.7,4.8493]
[1752029350188,1.39901343,2604.8,2604.7,5.61695]
[1752029350386,0.7676,2604.9,2604.8,0.76761]
[1752029350687,0.7676,2604.9,2604.8,1.6415]
[1752029352193,1.4403,2604.9,2604.8,1.6415]
[1752029352492,0.7676,2604.9,2604.8,1.6415]
[1752029353988,5.1857904,2605.2,2605.0,0.76755]
[1752029354195,6.35245172,2605.6,2605.0,5.2735504]
[1752029354196,1.40023374,2605.1,2605.0,5.2735504]
[1752029354392,0.76748,2605.3,2605.2,0.76748]
[1752029354590,0.76748,2605.3,2605.2,1.44358]
[1752029354793,2.16771152,2605.3,2605.2,1.6415]
[1752029355091,1.40023152,2605.3,2605.2,2.40901]
[1752029355685,1.2981904,2605.5,2605.2,2.40901]
[1752029355893,0.76748,2605.3,2605.2,0.6761]
[1752029356584,0.76748,2605.3,2605.2,1.6415]
[1752029357396,0.76748,2605.3,2605.2,2.40901]
[1752029358087,0.76748,2605.3,2605.2,1.6415]
[1752029358787,2.7583704,2605.3,2605.2,1.6415]
[1752029358994,1.9908904,2605.3,2605.2,0.6782]
[1752029359401,2.7583704,2605.3,2605.2,0.6782]
[1752029359694,2.7583704,2605.3,2605.2,1.44571]
[1752029360092,2.7583704,2605.3,2605.2,0.6782]
[1752029361699,2.7583704,2605.3,2605.2,1.44571]
[1752029362097,2.7583704,2605.3,2605.2,2.41481]
[1752029362395,1.46018,2605.3,2605.2,2.41481]
[1752029362990,0.6927,2605.3,2605.2,2.41481]
[1752029363196,0.76742,2605.5,2605.4,0.76745]
[1752029363396,2.16739415,2605.5,2605.4,2.41475]
[1752029363598,4.15828455,2605.5,2605.4,1.6473]
[1752029367893,2.7583104,2605.5,2605.4,1.6473]
[1752029370607,0.76748,2605.3,2605.2,28.18721]
[1752029370803,2.0656704,2605.3,2605.2,1.9749]
[1752029371007,2.7583704,2605.3,2605.2,26.7972]
[1752029371401,2.7583704,2605.3,2605.2,27.7663]
[1752029371601,2.7583704,2605.3,2605.2,0.6782]
[1752029372403,0.76751,2605.2,2605.1,0.6443]
[1752029372707,0.76751,2605.2,2605.1,1.3225]
[1752029373403,2.163336,2605.2,2605.1,0.6782]
[1752029374408,3.463536,2605.2,2605.1,0.6782]
[1752029375106,0.76762,2604.8,2604.7,3.2078]
[1752029375300,2.0658104,2604.8,2604.7,3.886]
[1752029375504,2.0658104,2604.8,2604.7,5.2587]
[1752029375900,2.0658104,2604.8,2604.7,3.886]
[1752029376106,0.76762,2604.8,2604.7,3.886]
[1752029376303,1.46032,2604.8,2604.7,3.886]
[1752029376507,0.76762,2604.8,2604.7,3.886]
[1752029376812,2.7573804,2605.0,2604.8,0.76762]
[1752029377008,1.39528994,2604.9,2604.8,0.76762]
[1752029377308,2.16287994,2604.9,2604.8,2.14032]
[1752029377505,1.2981904,2605.2,2605.1,0.76754]
[1752029377706,1.39519031,2605.2,2605.1,3.97534]
[1752029377907,1.39519031,2605.2,2605.1,4.65354]
[1752029378110,1.39519031,2605.2,2605.1,6.64474]
[1752029378307,0.76747,2605.4,2605.3,0.76748]
[1752029378515,0.76748,2605.3,2605.2,1.333]
[1752029378708,0.76751,2605.2,2605.1,0.6582]
[1752029378912,2.85541788,2605.2,2605.1,27.4924]
[1752029379107,2.16271788,2605.2,2605.1,28.25994]
[1752029379312,0.76751,2605.2,2605.1,29.22904]
[1752029379508,0.76751,2605.2,2605.1,2.3055]
[1752029379716,1.46021,2605.2,2605.1,0.6582]
[1752029380023,2.12731,2605.2,2605.1,1.3364]
[1752029381314,2.12731,2605.2,2605.1,0.6582]
[1752029381515,2.12731,2605.2,2605.1,1.3364]
[1752029381808,0.6671,2605.2,2605.1,2.10394]
[1752029382116,1.43461,2605.2,2605.1,2.10394]
[1752029382304,1.2981904,2605.3,2605.2,0.76751]
[1752029382511,3.2078,2605.6,2605.4,0.76743]
[1752029382712,0.76745,2605.4,2605.3,2.06526]
[1752029382910,3.2078,2605.6,2605.5,0.76742]
[1752029383112,0.76743,2605.5,2605.4,0.76743]
[1752029383315,2.16291911,2605.5,2605.4,0.76743]
[1752029383817,2.16291911,2605.5,2605.4,2.09663]
[1752029384609,1.39548911,2605.5,2605.4,2.09663]
[1752029385920,3.2078,2606.2,2605.4,1.3292]
[1752029386223,1.39656817,2606.0,2605.9,0.76729]
[1752029386519,2.16383817,2606.0,2605.8,0.76731]
[1752029386714,0.76727,2606.0,2605.9,1.3292]
[1752029386908,2.16383869,2606.0,2605.9,1.3292]
[1752029387113,2.83793869,2606.0,2605.9,1.3292]
[1752029387320,2.83793869,2606.0,2605.9,2.0965]
[1752029387714,2.83793869,2606.0,2605.9,3.7584]
[1752029388319,2.83793869,2606.0,2605.9,2.9911]
[1752029389026,2.83793869,2606.0,2605.9,2.0164]
[1752029389520,2.83793869,2606.0,2605.9,2.7837]
[1752029389723,2.16383869,2606.0,2605.9,3.7584]